bitfinex-derivatives/quotes_ETHF0:USTF0_20251107
["timestamp","ask_amount","ask_price","bid_price","bid_amount"]
[1762528271946,0.49012,3307.9,3307.7,3.2078]
[1762528272341,0.49028,3306.8,3306.7,3.2078]
[1762528272550,0.49029,3306.7,3306.3,3.2078]
[1762528272740,3.2078,3307.3,3306.3,3.2078]
[1762528272946,0.49026,3307.0,3306.6,0.00453206]
[1762528273247,0.49028,3306.8,3306.6,0.00453206]
[1762528273447,0.49028,3306.8,3306.5,0.00306326]
[1762528273638,8.0,3306.8,3305.0,3.2078]
[1762528273842,3.2078,3306.8,3305.6,0.49045]
[1762528274045,0.00453206,3307.2,3306.7,3.2078]
[1762528274252,0.00453206,3307.2,3307.1,3.2078]
[1762528274550,0.00453206,3307.2,3307.1,3.2104562]
[1762528274848,0.00453206,3307.2,3307.1,11.2104562]
[1762528275040,0.00453206,3307.2,3307.1,3.2104562]
[1762528275243,0.00453206,3307.2,3307.1,11.2104562]
[1762528275550,3.2078,3309.3,3308.3,0.49004]
[1762528275745,3.6978,3308.7,3308.0,3.2078]
[1762528275946,3.2078,3308.3,3307.6,3.2078]
[1762528276141,3.2078,3308.8,3308.1,3.2078]
[1762528276345,0.00756492,3308.8,3308.7,3.69778]
[1762528276545,3.2078,3310.9,3308.7,3.2078]
[1762528276745,3.2078,3310.9,3309.8,3.2078]
[1762528276943,3.2078,3310.6,3309.8,3.2078]
[1762528277249,3.2078,3311.8,3310.5,3.2078]
[1762528277551,0.00453206,3311.5,3311.0,3.2078]
[1762528279049,0.00453206,3311.5,3311.4,3.2078]
[1762528279349,0.00453206,3311.5,3311.0,3.2078]
[1762528279547,0.00453206,3311.5,3311.4,3.2078]
[1762528279950,0.00453206,3311.5,3311.0,3.2078]
[1762528280149,0.48967,3310.9,3310.8,0.00453206]
[1762528280355,0.48969,3310.7,3310.5,0.00350976]
[1762528280553,1.1635,3310.5,3308.7,3.2078]
[1762528280850,1.1635,3310.5,3308.3,3.2078]
[1762528280851,0.48994,3309.1,3308.3,3.2078]
[1762528281154,3.2078,3308.9,3308.3,3.2078]
[1762528281450,3.69783,3308.5,3308.4,0.00453206]
[1762528281653,3.2078,3308.5,3307.1,3.2078]
[1762528281960,3.69791,3307.9,3307.1,3.2078]
[1762528282253,0.49031,3306.6,3306.2,3.2078]
[1762528282461,3.2078,3307.4,3306.2,3.2078]
[1762528282649,3.2078,3307.4,3306.6,3.2078]
[1762528282852,0.00453206,3307.3,3307.0,3.2078]
[1762528283046,0.00453206,3307.3,3306.7,0.00453206]
[1762528283253,0.49027,3306.9,3306.7,0.00453206]
[1762528283446,3.2078,3308.2,3306.7,0.00453206]
[1762528283753,3.2078,3308.3,3307.6,3.2078]
[1762528284051,0.49016,3307.6,3307.4,3.2078]
[1762528284250,3.2078,3308.2,3307.4,3.2078]
[1762528284558,0.00453206,3308.1,3307.4,3.2078]
[1762528284852,3.2078,3307.7,3307.0,3.2078]
[1762528285058,3.21233206,3308.1,3307.4,3.2078]
[1762528285350,0.49012,3307.9,3307.4,3.2078]
[1762528285557,0.00453206,3308.1,3307.8,3.2078]
[1762528285745,0.00322512,3308.9,3307.9,8.0]
[1762528285946,0.00322512,3308.9,3308.3,3.2078]
[1762528286155,0.49001,3308.6,3308.3,3.2078]
[1762528286458,3.2078,3308.7,3307.8,3.2078]
[1762528286654,0.00322512,3308.9,3307.8,3.2078]
[1762528286655,0.4901,3308.0,3307.8,3.2078]
[1762528287054,0.00453206,3308.2,3307.5,3.2078]
[1762528287356,0.00322512,3308.9,3308.4,0.49002]
[1762528287551,0.00322512,3308.9,3308.8,3.2078]
[1762528289054,0.49001,3308.6,3308.5,0.00453206]
[1762528289755,0.49,3308.7,3308.5,0.00453206]
[1762528290055,0.49021,3307.3,3307.1,3.2078]
[1762528290262,0.49024,3307.1,3306.7,3.2078]
[1762528290556,3.2078,3307.7,3306.7,3.2078]
[1762528290855,0.49015,3307.7,3307.5,3.2078]
[1762528291067,0.49024,3307.0,3306.9,0.00453206]
[1762528291761,0.49029,3306.7,3306.6,0.00316135]
[1762528291963,3.69809,3306.7,3306.6,1.35e-06]
[1762528292259,3.2078,3306.7,3306.6,1.35e-06]
[1762528292458,11.2078,3306.7,3306.6,1.35e-06]
[1762528292861,0.49033,3306.4,3306.3,3.341e-05]
[1762528293262,8.49033,3306.4,3306.3,3.341e-05]
[1762528293661,0.49033,3306.4,3306.3,3.341e-05]
[1762528293961,0.49033,3306.4,3305.7,0.01271]
[1762528293962,0.49042,3305.9,3305.7,0.01271]
[1762528294167,0.49054,3305.0,3304.8,3.2078]
[1762528294460,0.49069,3304.0,3303.9,3.2078]
[1762528294665,0.49074,3303.7,3302.6,0.49088]
[1762528294965,0.00359034,3303.7,3303.5,3.69856]
[1762528295160,0.00359034,3303.7,3303.5,3.2078]
[1762528295362,0.00359034,3303.7,3303.6,0.49074]
[1762528295565,0.00453933,3303.9,3303.6,8.49074]
[1762528295761,1.2273,3305.4,3303.9,0.49069]
[1762528295962,3.2078,3306.0,3304.8,3.2078]
[1762528296155,0.49049,3305.4,3305.2,3.2078]
[1762528296357,0.49055,3305.0,3302.6,1.2117]
[1762528296664,0.49055,3305.0,3304.9,3.2078]
[1762528296665,0.00284048,3305.0,3304.9,3.2078]
[1762528297565,8.00284048,3305.0,3304.9,3.2078]
[1762528297766,0.00284048,3305.0,3304.9,3.2078]
[1762528298158,0.00284048,3305.0,3304.4,3.2078]
[1762528298464,0.00284048,3305.0,3304.6,3.2078]
[1762528298660,0.49056,3304.9,3304.6,3.2078]
[1762528298864,0.00284048,3305.0,3304.6,3.2078]
[1762528299265,0.49057,3304.8,3304.6,3.2078]
[1762528299464,0.00284048,3305.0,3304.6,3.2078]
[1762528299661,0.49058,3304.8,3304.6,3.2078]
[1762528299861,0.00284048,3305.0,3304.6,3.2078]
[1762528300064,0.49056,3304.9,3304.6,3.2078]
[1762528300563,0.49057,3304.8,3304.6,3.2078]
[1762528301663,0.49058,3304.7,3304.6,3.2078]
[1762528301863,0.00284048,3305.0,3304.6,3.2078]
[1762528302262,0.49057,3304.8,3304.6,3.2078]
[1762528302462,0.00284048,3305.0,3304.6,3.2078]
[1762528302657,0.49057,3304.8,3304.6,3.2078]
[1762528303066,8.0,3304.7,3304.6,3.2078]
[1762528303367,0.49055,3304.9,3304.5,3.2078]
[1762528303573,0.00284048,3305.0,3304.5,3.2078]
[1762528303775,0.49064,3304.3,3304.1,3.2078]
[1762528304368,0.49071,3303.8,3303.7,3.2078]
[1762528304567,0.00284048,3305.0,3303.7,3.2078]
[1762528304870,0.49072,3303.8,3303.7,3.2078]
[1762528305062,0.49074,3303.6,3303.5,0.00453933]
[1762528305472,0.49077,3303.4,3303.3,3.2078]
[1762528305668,0.49077,3303.4,3302.6,0.00369702]
[1762528305669,0.49088,3302.7,3302.6,0.00369702]
[1762528306164,3.2078,3303.0,3301.9,3.2078]
[1762528306165,0.49098,3302.0,3301.9,3.2078]
[1762528306370,0.49095,3302.2,3301.9,3.2078]
[1762528306565,0.49097,3302.0,3301.9,3.2078]
[1762528306873,0.49097,3302.1,3301.9,3.2078]
[1762528307172,0.49396131,3302.1,3301.9,3.21126187]
[1762528307671,0.49396131,3302.1,3301.9,0.00346187]
[1762528307872,0.00299131,3302.1,3301.9,0.00346187]
[1762528308170,0.49396131,3302.1,3301.9,0.00346187]
[1762528308880,0.49102,3301.7,3301.6,0.00453933]
[1762528309068,0.49102,3301.7,3301.6,3.21233933]
[1762528309373,0.49102,3301.7,3301.6,0.00453933]
[1762528309573,0.49115,3300.8,3300.7,3.2078]
[1762528309767,0.00299131,3302.1,3300.7,3.209979]
[1762528309972,0.49108,3301.3,3301.2,3.2078]
[1762528310172,3.2078,3302.0,3301.2,3.2078]
[1762528310476,0.49107,3301.4,3301.3,3.21233933]
[1762528310867,0.49107,3301.4,3301.3,0.00453933]
[1762528311072,0.00299131,3302.1,3301.3,3.21233933]
[1762528311376,0.49106,3301.5,3301.3,3.21233933]
[1762528311674,0.00299131,3302.1,3301.3,3.21233933]
[1762528312071,0.49106,3301.5,3301.3,0.00453933]
[1762528313171,8.49106,3301.5,3301.3,0.00453933]
[1762528313383,0.49106,3301.5,3301.3,0.00453933]
[1762528313980,0.49106,3301.5,3301.3,3.933e-05]
[1762528314279,0.49115,3300.8,3300.7,0.002179]
[1762528314480,0.49111,3301.1,3300.7,0.002179]
[1762528314676,0.00299131,3302.1,3300.8,3.2078]
[1762528314874,0.49395131,3302.1,3302.0,3.2078]
[1762528315271,0.49101,3301.8,3301.7,0.00303109]
[1762528317277,8.49101,3301.8,3301.7,0.00303109]
[1762528317678,8.49101,3301.8,3301.7,3.109e-05]
[1762528318883,8.49101,3301.8,3300.7,0.002179]
[1762528319073,8.49101,3301.8,3297.6,1.209]
[1762528319074,3.2078,3299.6,3297.6,1.209]
[1762528319281,3.2078,3299.3,3297.6,1.209]
[1762528319585,0.49143,3299.0,3298.9,1.1507]
[1762528319785,3.2078,3299.1,3298.9,1.1507]
[1762528320088,0.00345867,3299.1,3298.9,1.15299656]
[1762528320279,0.00454738,3299.3,3299.0,11.2078]
[1762528320487,3.2078,3300.0,3299.0,11.69921]
[1762528320676,3.2078,3300.0,3299.0,3.2078]
[1762528320984,3.2078,3300.4,3300.0,1.1507]
[1762528321186,3.2078,3301.0,3300.0,1.1507]
[1762528321390,0.00454738,3300.8,3300.2,0.00454738]
[1762528321583,0.49111,3301.2,3300.7,3.2078]
[1762528321786,3.2078,3301.2,3300.3,3.2078]
[1762528321982,3.69901,3300.4,3300.2,0.00454738]
[1762528322287,3.2078,3300.3,3300.2,0.00454738]
[1762528322485,0.49494047,3300.4,3300.2,0.00454738]
[1762528322686,0.00373047,3300.4,3300.2,0.00454738]
[1762528322891,0.49495047,3300.4,3300.2,0.00454738]
[1762528323394,0.49141,3299.1,3298.9,1.15299656]
[1762528323697,0.49136,3299.4,3298.9,0.00229656]
[1762528323985,3.2078,3300.0,3299.0,3.2078]
[1762528324191,0.49129,3299.9,3299.4,3.2078]
[1762528324385,3.2078,3300.0,3299.4,3.2078]
[1762528324586,0.49134,3299.6,3299.4,0.00454738]
[1762528324787,3.69914,3299.6,3299.4,0.00454738]
[1762528325387,3.2078,3300.0,3299.4,0.00454738]
[1762528325591,0.00373047,3300.4,3299.4,3.21234738]
[1762528325891,0.00373047,3300.4,3299.7,0.49131]
[1762528326090,0.49126,3300.1,3299.7,0.49131]
[1762528326288,0.00373047,3300.4,3299.4,3.21234738]
[1762528326888,3.2078,3300.1,3299.4,3.21234738]
[1762528327093,0.00373047,3300.4,3299.4,3.21234738]
[1762528327680,0.49128,3300.0,3299.7,0.49131]
[1762528327886,0.49135,3299.5,3299.4,0.00454738]
[1762528328090,3.69915,3299.5,3299.4,0.00454738]
[1762528328693,3.2078,3300.2,3299.4,0.00454738]
[1762528328994,0.00373047,3300.4,3299.4,0.00454738]
[1762528328995,0.49134,3299.6,3299.4,0.00454738]
[1762528329196,3.2078,3299.7,3299.4,0.00454738]
[1762528329495,0.49133,3299.6,3299.4,0.00454738]
[1762528329883,3.2078,3299.7,3299.4,0.00454738]
[1762528330084,0.49133,3299.6,3299.4,0.00454738]
[1762528330702,3.2078,3299.7,3299.4,0.00454738]
[1762528330997,0.49135,3299.5,3299.4,0.00454738]
[1762528331790,0.49126,3300.1,3299.4,0.00454738]
[1762528332100,0.00373047,3300.4,3299.5,3.2078]
[1762528332298,3.2078,3300.3,3299.5,3.2078]
[1762528332496,3.2078,3300.3,3299.4,0.00454738]
[1762528332497,0.49132,3299.7,3299.4,0.00454738]
[1762528332796,0.49135,3299.5,3299.4,0.00454738]
[1762528333098,3.2078,3300.3,3299.4,0.00454738]
[1762528333297,0.49134,3299.5,3299.4,0.00454738]
[1762528333593,3.69914,3299.5,3299.4,0.00454738]
[1762528333800,0.49134,3299.5,3299.4,0.00454738]
[1762528334294,0.49134,3299.5,3298.9,0.00229656]
[1762528334295,0.49142,3299.0,3298.9,0.00229656]
[1762528334599,0.49142,3299.0,3297.6,1.209]
[1762528334600,0.49161,3297.7,3297.6,1.209]
[1762528334788,1.1186,3300.0,3297.6,1.209]
[1762528334993,3.2078,3299.8,3298.7,3.2078]
[1762528335297,0.4915,3298.5,3298.3,3.2078]
[1762528335599,0.0026056,3298.5,3298.3,3.21083904]
[1762528335799,3.21234738,3299.6,3298.5,0.49149]
[1762528335996,0.49145,3298.9,3298.4,3.6993]
[1762528336196,3.21234738,3299.6,3298.4,3.6993]
[1762528336197,3.2078,3299.2,3298.4,3.2078]
[1762528336497,0.00454738,3299.6,3299.4,0.49136]
[1762528336498,4.738e-05,3299.6,3299.4,0.49136]
[1762528336697,3.2078,3300.9,3300.0,1.1507]
[1762528336900,0.49128,3300.0,3299.7,3.2078]
[1762528337201,0.49125,3300.2,3299.7,3.2078]
[1762528337505,0.49127,3300.1,3299.7,3.2078]
[1762528337690,0.4913,3299.8,3299.6,0.00454738]
[1762528338005,0.49143,3299.0,3298.3,0.00303904]
[1762528338201,0.4915,3298.5,3298.3,0.00303904]
[1762528338498,0.4915,3298.5,3297.8,0.49159]
[1762528338499,0.49164,3297.5,3297.4,0.7664421]
[1762528338703,0.49163,3297.6,3297.2,3.2078]
[1762528338899,0.49166,3297.4,3297.2,3.2078]
[1762528339603,0.49618738,3297.6,3297.2,3.21090537]
[1762528339801,3.2078,3298.2,3297.2,3.21090537]
[1762528340006,3.2078,3298.2,3297.3,3.2078]
[1762528340296,3.21114645,3298.5,3297.3,3.2078]
[1762528340491,3.21114645,3298.5,3297.8,1.1507]
[1762528340693,3.2078,3299.3,3298.4,3.2078]
[1762528340897,0.00454738,3299.2,3298.5,0.00454738]
[1762528341099,0.49147,3298.7,3298.5,0.00454738]
[1762528341407,3.2078,3298.6,3298.5,0.00454738]
[1762528341600,0.49147,3298.7,3298.5,0.00454738]
[1762528341803,0.00264389,3298.7,3298.5,0.00454738]
[1762528342000,0.49411389,3298.7,3298.5,0.00454738]
[1762528342201,3.70191389,3298.7,3298.5,0.00454738]
[1762528342403,0.00264389,3298.7,3298.5,3.70383738]
[1762528342611,0.00264389,3298.7,3298.5,3.21234738]
[1762528342802,0.49411389,3298.7,3298.5,0.00454738]
[1762528343401,0.00264389,3298.7,3298.5,0.00454738]
[1762528343701,0.00264389,3298.7,3298.5,11.70383738]
[1762528344102,0.00264389,3298.7,3298.5,11.21234738]
[1762528344494,0.00454738,3299.2,3299.0,1.64211]
[1762528344695,1.08622219,3301.4,3300.0,1.1507]
[1762528344901,1.08622219,3301.4,3300.3,3.2078]
[1762528344902,3.2078,3301.1,3300.3,3.2078]
[1762528345103,3.2078,3301.1,3300.0,1.64196]
[1762528345104,0.49125,3300.2,3300.0,1.1507]
[1762528345394,0.49125,3300.2,3299.2,1.54095296]
[1762528345395,0.49134,3299.6,3299.5,3.2078]
[1762528345602,0.00380085,3300.2,3299.5,3.2078]
[1762528345804,0.49132,3299.7,3299.5,3.21510148]
[1762528345999,0.00834823,3300.2,3299.5,3.21510148]
[1762528346200,0.00454738,3300.2,3300.0,1.64196]
[1762528346404,0.0166,3301.4,3300.0,1.1507]
[1762528346405,3.2078,3301.3,3300.0,1.1507]
[1762528346707,0.49111,3301.1,3300.7,3.2078]
[1762528347003,0.0166,3301.4,3300.7,3.2078]
[1762528347200,0.0166,3301.4,3301.2,0.49108]
[1762528347410,0.02492469,3301.4,3301.2,0.49108]
[1762528347605,0.02492469,3301.4,3301.1,3.2078]
[1762528347808,0.02492469,3301.4,3301.2,0.49109]
[1762528347997,0.02492469,3301.4,3300.7,3.9742421]
[1762528348205,0.02492469,3301.4,3300.7,3.2078]
[1762528348404,0.02492469,3301.4,3301.2,0.49109]
[1762528348800,2.469e-05,3301.4,3301.2,0.49109]
[1762528349002,0.7155,3303.0,3301.1,4.3585]
[1762528349003,3.2078,3303.8,3302.4,0.49091]
[1762528349302,3.2078,3302.9,3301.9,3.2078]
[1762528349501,3.2078,3302.9,3301.8,3.2078]
[1762528349698,0.49081,3303.2,3302.6,3.69868]
[1762528349911,0.00257099,3303.2,3303.0,0.49082]
[1762528350119,0.00711837,3303.2,3303.1,3.2078]
[1762528350307,0.00711837,3303.2,3302.7,3.2078]
[1762528350500,0.49087,3302.7,3302.6,0.00763342]
[1762528351006,3.2078,3303.0,3302.6,0.00763342]
[1762528351201,0.49086,3302.8,3302.6,0.00763342]
[1762528351397,11.2078,3303.0,3301.6,3.2078]
[1762528351607,3.2078,3302.4,3301.6,3.2078]
[1762528352004,0.49101,3301.8,3301.1,1.1507]
[1762528352307,0.00711837,3303.2,3302.2,1.114]
[1762528352513,3.21491837,3303.2,3302.4,0.00454738]
[1762528352916,3.2078,3304.2,3303.3,1.114]
[1762528353101,3.2078,3303.6,3303.3,1.114]
[1762528353302,0.49082,3303.1,3302.6,0.49088]
[1762528353505,0.49082,3303.1,3302.4,3.2078]
[1762528353506,3.2078,3303.2,3302.7,0.49086]
[1762528353702,0.49084,3302.9,3302.4,3.69871]
[1762528353912,0.00283069,3302.9,3302.4,3.2078]
[1762528354111,0.00283069,3302.9,3302.8,3.2078]
[1762528354310,0.00283069,3302.9,3302.6,0.49088]
[1762528354510,0.00283069,3302.9,3302.8,3.2078]
[1762528355004,0.49086,3302.8,3302.4,3.2078]
[1762528355412,0.00283069,3302.9,3302.6,0.49087]
[1762528355712,0.00283069,3302.9,3302.3,0.00454036]
[1762528355713,3.2078,3303.5,3302.8,3.2078]
[1762528355914,3.2078,3303.5,3302.9,0.49084]
[1762528356210,1.06962219,3306.2,3302.8,3.2078]
[1762528356211,3.2078,3304.1,3302.8,3.2078]
[1762528356417,3.2078,3303.7,3302.7,3.2078]
[1762528356712,0.49085,3302.8,3302.7,3.2078]
[1762528356911,3.2078,3303.2,3302.7,3.2078]
[1762528357105,0.4908,3303.2,3302.9,0.49083]
[1762528357302,0.00454036,3303.5,3302.7,3.2078]
[1762528357812,0.00454036,3303.5,3303.3,1.60477]
[1762528358209,0.00454036,3303.5,3303.3,9.60477]
[1762528358407,0.0021796,3303.7,3303.6,0.49074]
[1762528358613,0.0021796,3303.7,3303.3,1.114]
[1762528358913,3.2078,3304.8,3303.8,0.49069]
[1762528359107,3.2078,3304.8,3304.3,0.49063]
[1762528359310,3.2078,3304.8,3303.9,3.2078]
[1762528359511,0.49067,3304.1,3303.9,3.2078]
[1762528359713,0.49065,3304.2,3304.0,0.00454036]
[1762528360012,0.49065,3304.2,3302.5,3.2078]
[1762528360013,3.2078,3304.1,3302.5,3.2078]
[1762528360211,0.49079,3303.3,3302.5,3.2078]
[1762528360408,3.2078,3303.3,3302.2,1.11633147]
[1762528360607,0.49084,3303.0,3302.7,0.49087]
[1762528360811,0.49084,3302.9,3302.5,3.69869]
[1762528361008,0.49084,3302.9,3302.4,0.00454036]
[1762528361009,0.4909,3302.5,3302.4,0.00454036]
[1762528361316,0.49103,3301.7,3301.5,3.2078]
[1762528362312,0.49483791,3301.7,3301.5,3.21004623]
[1762528362502,0.49483791,3301.7,3301.5,0.00224623]
[1762528363314,0.00381791,3301.7,3301.5,3.70108623]
[1762528364003,0.49484791,3301.7,3301.5,0.00224623]
[1762528364207,0.49115,3300.8,3300.7,3.2078]
[1762528364409,0.49127,3300.0,3299.9,3.2078]
[1762528364608,0.49127,3300.0,3298.1,4.02754642]
[1762528364609,3.2078,3300.2,3299.5,3.69915]
[1762528364812,3.69904,3300.3,3299.5,3.2078]
[1762528365110,3.2078,3301.0,3300.2,3.2078]
[1762528365411,0.00454036,3300.9,3300.3,0.00454036]
[1762528365616,0.4912,3300.5,3300.3,0.00454036]
[1762528366309,0.49139,3299.2,3298.8,0.49144]
[1762528366510,3.2078,3300.0,3299.1,3.2078]
[1762528366812,0.49138,3299.3,3299.1,3.2078]
[1762528367010,0.49146,3298.8,3298.7,3.2078]
[1762528367211,0.49135,3299.5,3298.7,3.69926]
[1762528367418,0.0045473,3299.1,3298.9,0.49143]
[1762528367611,0.0045473,3299.1,3298.7,3.21017871]
[1762528367911,3.2078,3300.1,3299.6,0.49132]
[1762528368109,3.2078,3300.1,3299.4,3.2078]
[1762528368310,0.49131,3299.8,3299.4,3.2078]
[1762528368511,0.49134,3299.6,3299.4,3.2078]
[1762528368815,3.2078,3300.1,3299.4,3.2078]
[1762528369013,0.0045473,3299.8,3299.4,3.2078]
[1762528369219,0.4958473,3299.8,3299.4,3.2078]
[1762528369418,0.49132,3299.7,3299.4,3.2078]
[1762528369709,0.0045473,3299.8,3299.6,0.49132]
[1762528370104,3.2078,3300.5,3299.4,3.2078]
[1762528370309,5.38305803,3305.0,3300.1,3.2078]
[1762528370310,3.2078,3302.8,3300.1,3.2078]
[1762528370510,1.0995,3302.0,3300.9,3.2078]
[1762528370710,0.49112,3301.0,3300.9,3.2078]
[1762528370916,0.49123,3300.3,3300.1,3.2078]
[1762528371111,0.49397497,3300.3,3300.1,3.2078]
[1762528371811,1.0995,3300.0,3299.9,0.0045473]
[1762528372314,9.0995,3300.0,3299.3,3.2078]
[1762528372519,1.0995,3300.0,3299.7,3.2078]
[1762528372813,0.0045473,3300.5,3299.7,3.2078]
[1762528373015,3.2078,3302.1,3300.4,3.2078]
[1762528373204,4.3405,3303.0,3301.9,3.2078]
[1762528373410,1.0995,3302.2,3301.9,3.2078]
[1762528373618,4.3073,3302.2,3300.6,3.2078]
[1762528373814,0.49119,3300.6,3300.0,3.2078]
[1762528374015,0.4912,3300.5,3300.3,0.00229276]
[1762528374817,0.0045473,3300.6,3300.4,3.2078]
[1762528375417,0.4957273,3300.6,3300.4,3.2078]
[1762528376017,0.49121,3300.4,3300.3,0.00229276]
[1762528376418,0.0045473,3300.6,3300.3,0.00229276]
[1762528376615,0.4912,3300.5,3300.3,0.00229276]
[1762528376814,0.0045473,3300.6,3300.4,3.2078]
[1762528377416,3.2078,3302.0,3301.0,0.49112]
[1762528377619,0.49102,3301.7,3301.6,3.2078]
[1762528377914,0.00256755,3302.2,3301.8,0.491]
[1762528378218,0.00256755,3302.2,3302.0,3.2078]
[1762528378420,0.00256755,3302.2,3302.0,3.69877]
[1762528378621,0.00256755,3302.2,3302.0,3.2078]
[1762528380117,1.1327,3303.0,3302.0,3.2078]
[1762528380415,0.49082,3303.1,3302.9,3.2078]
[1762528380615,0.49087,3302.8,3302.5,3.2078]
[1762528380817,1.146,3303.3,3302.5,3.2078]
[1762528381117,0.49088,3302.7,3302.5,3.21010636]
[1762528381318,0.49088,3302.7,3302.5,0.00230636]
[1762528381727,3.2078,3302.6,3302.5,0.00230636]
[1762528381917,0.49099,3301.9,3301.8,0.0045473]
[1762528382220,3.69879,3301.9,3301.8,0.0045473]
[1762528382420,0.49097,3302.0,3301.8,3.2123473]
[1762528382616,3.2078,3301.9,3301.8,0.0045473]
[1762528382817,11.2078,3301.9,3300.9,3.2078]
[1762528383018,11.2078,3301.9,3301.3,3.2078]
[1762528383019,3.2078,3301.9,3301.3,3.2078]
[1762528383324,1.14986341,3303.3,3301.7,3.2078]
[1762528383521,0.49087,3302.7,3302.5,3.2078]
[1762528383917,1.14986341,3303.3,3302.5,3.2078]
[1762528384226,0.0045473,3303.2,3302.9,3.2078]
[1762528384413,0.49081,3303.1,3302.9,3.21160444]
[1762528384614,0.0045473,3303.2,3302.9,3.21160444]
[1762528385022,0.0045473,3303.2,3303.0,0.49082]
[1762528385218,0.4907,3303.9,3303.0,6.0552]
[1762528385516,3.497,3305.7,3303.1,3.2078]
[1762528385517,3.2078,3304.1,3303.1,3.2078]
[1762528385714,0.49079,3303.3,3303.1,3.2078]
[1762528386221,0.00241556,3303.3,3303.1,3.2078]
[1762528386421,0.49071,3303.8,3303.1,3.2078]
[1762528386623,3.2078,3304.2,3303.3,3.2078]
[1762528386925,0.49082,3303.0,3302.9,0.00380444]
[1762528387318,1.146,3303.3,3302.9,0.00380444]
[1762528387518,0.49082,3303.1,3302.9,0.00380444]
[1762528387727,0.00313085,3303.3,3302.9,0.00380444]
[1762528387917,0.00313085,3303.3,3303.1,3.2078]
[1762528388113,0.00313085,3303.3,3302.9,0.00380444]
[1762528388114,0.49082,3303.0,3302.9,0.00380444]
[1762528388923,11.69862,3303.0,3302.9,4.44e-06]
[1762528389426,1.14913085,3303.3,3302.9,4.44e-06]
[1762528389626,0.00313085,3303.3,3303.1,3.6986]
[1762528389827,3.2078,3304.8,3303.3,0.49077]
[1762528390125,0.49081,3303.1,3302.9,4.44e-06]
[1762528390721,1.146,3303.0,3302.9,4.44e-06]
[1762528390917,1.14851277,3303.0,3302.9,4.44e-06]
[1762528391317,0.00251277,3303.0,3302.9,4.44e-06]
[1762528392924,1.0995,3304.4,3302.9,8.00000444]
[1762528393121,3.2078,3303.9,3303.1,3.2078]
[1762528393326,0.49078,3303.3,3303.1,3.2078]
[1762528393926,0.49371583,3303.3,3303.1,3.2078]
[1762528394625,0.49079,3303.2,3303.1,3.2078]
[1762528395131,1.63682,3303.0,3302.9,4.44e-06]
[1762528395325,0.00293583,3303.3,3302.9,4.44e-06]
[1762528395524,0.49082,3303.0,3302.9,4.44e-06]
[1762528395933,0.00293583,3303.3,3302.9,4.44e-06]
[1762528396133,0.00293583,3303.3,3303.1,0.49081]
[1762528396524,1.0995,3304.4,3303.2,14.0544]
[1762528396727,0.49063,3304.3,3304.2,3.2078]
[1762528397032,0.21551722,3305.9,3304.2,3.2078]
[1762528397033,3.2078,3305.6,3304.2,3.2078]
[1762528397237,1.59275174,3306.8,3305.4,3.2078]
[1762528397238,3.2078,3306.4,3305.4,3.2078]
[1762528397531,3.21171326,3306.4,3305.4,3.21155817]
[1762528397733,0.49044,3305.6,3305.4,3.21155817]
[1762528397932,3.21171326,3306.4,3305.4,3.21155817]
[1762528398130,0.49038,3306.0,3305.9,3.2078]
[1762528398335,0.00391326,3306.4,3305.9,3.2078]
[1762528398634,0.49037,3306.1,3305.9,3.2078]
[1762528398839,0.00391326,3306.4,3305.9,3.2078]
[1762528399029,0.00391326,3306.4,3305.4,0.00375817]
[1762528399030,0.00391326,3306.4,3306.3,3.2078]
[1762528399426,0.49037,3306.1,3305.9,3.2078]
[1762528399727,0.49043,3305.7,3305.5,3.2078]
[1762528399934,0.49045,3305.5,3305.4,0.00375817]
[1762528400131,1.63645,3305.5,3305.4,0.00375817]
[1762528400636,0.49056,3304.8,3304.7,3.2078]
[1762528401427,0.49056,3304.8,3303.2,0.77285022]
[1762528401428,0.49063,3304.3,3304.2,3.2078]
[1762528401830,0.4907,3303.8,3303.7,3.2078]
[1762528402439,0.49065,3304.2,3303.7,3.2078]
[1762528402742,0.4907,3303.9,3303.7,3.2078]
[1762528403036,0.49383198,3303.9,3303.7,3.21061005]
[1762528403438,0.00313198,3303.9,3303.7,3.21061005]
[1762528403840,0.49382198,3303.9,3303.7,3.21061005]
[1762528404339,0.49089,3302.6,3302.4,3.2078]
[1762528404738,0.49095,3302.1,3302.0,3.2078]
[1762528405040,1.146,3303.0,3300.3,1.552881]
[1762528405041,1.146,3302.0,3301.1,3.2078]
[1762528405340,3.21234036,3301.9,3301.2,0.00454036]
[1762528405637,0.00454036,3301.9,3301.5,3.2078]
[1762528406035,0.49102,3301.7,3301.2,0.00454036]
[1762528406239,0.00454036,3301.9,3301.5,3.2078]
[1762528406843,0.49102,3301.7,3301.5,3.2078]
[1762528407030,0.49103,3301.6,3301.2,0.00454036]
[1762528407233,0.00454036,3301.9,3301.5,3.69884]
[1762528407437,0.00454036,3301.9,3301.5,3.2078]
[1762528407835,0.49101,3301.8,3301.5,3.2078]
[1762528408143,0.49102,3301.7,3301.5,3.2078]
[1762528408444,0.49107,3301.4,3301.2,0.00454036]
[1762528408642,0.49452874,3301.4,3301.2,0.00454036]
[1762528409339,0.00345874,3301.4,3301.2,3.21234036]
[1762528409744,0.00345874,3301.4,3301.2,0.00454036]
[1762528409940,0.00345874,3301.4,3301.3,3.2078]
[1762528411343,0.00454036,3301.9,3301.3,11.2078]
[1762528411537,0.00454036,3301.9,3301.2,6.06294036]
[1762528411538,0.00454036,3301.9,3301.8,3.2078]
[1762528411737,0.00454036,3301.9,3301.8,3.6988]
[1762528411934,0.49107,3301.3,3301.2,0.00454036]
[1762528412343,0.49106,3301.4,3301.2,0.00454036]
[1762528412541,0.00345319,3301.3,3301.2,0.00454036]
[1762528413337,3.21125319,3301.3,3301.2,0.00454036]
[1762528413547,11.21125319,3301.3,3301.2,0.00454036]
[1762528413942,3.21125319,3301.3,3301.2,0.00454036]
[1762528414353,0.00345319,3301.3,3301.2,0.00454036]
[1762528414843,11.21125319,3301.3,3301.2,0.00454036]